[Event "December 5 Late 2023"]
[Site "https://www.chess.com"]
[Date "2023.12.05"]
[Round "8"]
[White "Carlsen, Magnus"]
[Black "Zhigalko, Sergei"]
[Result "1-0"]
[Board "1"]
[TimeControl "180+1"]
[WhiteFideId "1503014"]
[BlackFideId "13502956"]
[WhiteElo "3314"]
[BlackElo "2955"]
[WhiteTeam "NOR"]
[BlackTeam "BLR"]
[WhiteClock "0:02:22"]
[BlackClock "0:00:00"]

1. e4 {[%clk 0:03:00]}  c5 {[%clk 0:03:00]} 2. Nf3 {[%clk 0:03:01]}  Nc6 {[%clk 0:03:00]} 3. Bc4 {[%clk 0:03:01]}  Nf6 {[%clk 0:03:01]} 4. d3 {[%clk 0:02:59]}  e6 {[%clk 0:03:01]} 5. O-O {[%clk 0:02:59]}  d5 {[%clk 0:03:00]} 6. Bb5 {[%clk 0:02:59]}  Bd7 {[%clk 0:02:48]} 7. Re1 {[%clk 0:02:59]}  a6 {[%clk 0:02:46]} 8. Bxc6 {[%clk 0:02:59]}  Bxc6 {[%clk 0:02:47]} 9. Ne5 {[%clk 0:02:50]}  dxe4 {[%clk 0:02:23]} 10. Nxc6 {[%clk 0:02:50]}  bxc6 {[%clk 0:02:23]} 11. dxe4 {[%clk 0:02:50]}  Qxd1 {[%clk 0:02:20]} 12. Rxd1 {[%clk 0:02:51]}  Nxe4 {[%clk 0:02:20]} 13. Na3 {[%clk 0:02:51]}  Nf6 {[%clk 0:02:05]} 14. Nc4 {[%clk 0:02:51]}  Nd5 {[%clk 0:02:05]} 15. Na5 {[%clk 0:02:50]}  c4 {[%clk 0:01:50]} 16. Nxc4 {[%clk 0:02:48]}  Bc5 {[%clk 0:01:47]} 17. Na5 {[%clk 0:02:43]}  Bb6 {[%clk 0:01:37]} 18. Bd2 {[%clk 0:02:43]}  Bxa5 {[%clk 0:01:26]} 19. Bxa5 {[%clk 0:02:44]}  O-O {[%clk 0:01:25]} 20. c4 {[%clk 0:02:44]}  Nf6 {[%clk 0:01:23]} 21. Rd6 {[%clk 0:02:43]}  Rfc8 {[%clk 0:01:18]} 22. Rad1 {[%clk 0:02:42]}  h6 {[%clk 0:01:02]} 23. f3 {[%clk 0:02:40]}  Rab8 {[%clk 0:00:47]} 24. b3 {[%clk 0:02:40]}  Rb7 {[%clk 0:00:29]} 25. Rd8+ {[%clk 0:02:39]}  Rxd8 {[%clk 0:00:29]} 26. Rxd8+ {[%clk 0:02:39]}  Kh7 {[%clk 0:00:30]} 27. Rd6 {[%clk 0:02:39]}  Rd7 {[%clk 0:00:28]} 28. Rxc6 {[%clk 0:02:40]}  Rd1+ {[%clk 0:00:24]} 29. Kf2 {[%clk 0:02:39]}  Ra1 {[%clk 0:00:24]} 30. a4 {[%clk 0:02:39]}  Ra2+ {[%clk 0:00:23]} 31. Kf1 {[%clk 0:02:39]}  Ra1+ {[%clk 0:00:21]} 32. Ke2 {[%clk 0:02:37]}  Ra2+ {[%clk 0:00:20]} 33. Bd2 {[%clk 0:02:36]}  Nd7 {[%clk 0:00:19]} 34. Rxa6 {[%clk 0:02:35]}  Rb2 {[%clk 0:00:18]} 35. b4 {[%clk 0:02:30]}  Ne5 {[%clk 0:00:18]} 36. c5 {[%clk 0:02:29]}  Nc4 {[%clk 0:00:17]} 37. Rd6 {[%clk 0:02:21]}  Nxd2 {[%clk 0:00:06]} 38. Rxd2 {[%clk 0:02:22]}  Rxb4 {[%clk 0:00:07]} 39. Ra2 {[%clk 0:02:22]}  Rc4 {[%clk 0:00:05]} 40. a5 {[%clk 0:02:23]}  Rxc5 {[%clk 0:00:06]} 41. a6 {[%clk 0:02:23]}  Rc8 {[%clk 0:00:07]} 42. a7 {[%clk 0:02:23]}  Ra8 {[%clk 0:00:07]} 43. Kd3 {[%clk 0:02:23]}  Kg6 {[%clk 0:00:05]} 44. Kd4 {[%clk 0:02:23]}  Kf5 {[%clk 0:00:05]} 45. Kc5 {[%clk 0:02:23]}  e5 {[%clk 0:00:03]} 46. Kb6 {[%clk 0:02:23]}  e4 {[%clk 0:00:03]} 47. fxe4+ {[%clk 0:02:23]}  Kxe4 {[%clk 0:00:04]} 48. Kb7 {[%clk 0:02:23]}  Re8 {[%clk 0:00:02]} 49. Re2+ {[%clk 0:02:21]}  Kf5 {[%clk 0:00:00]} 50. Rxe8 {[%clk 0:02:22]} 1-0

[Event "December 5 Late 2023"]
[Site "https://www.chess.com"]
[Date "2023.12.05"]
[Round "8"]
[White "Pranav, V"]
[Black "Sarana, Alexey"]
[Result "1-0"]
[Board "4"]
[TimeControl "180+1"]
[WhiteFideId "25060783"]
[BlackFideId "24133795"]
[WhiteElo "3063"]
[BlackElo "3019"]
[WhiteTeam "IND"]
[BlackTeam "SRB"]
[WhiteClock "0:00:05"]
[BlackClock "0:00:03"]

1. Nf3 {[%clk 0:03:00]}  d5 {[%clk 0:03:00]} 2. g3 {[%clk 0:03:00]}  g6 {[%clk 0:03:00]} 3. Bg2 {[%clk 0:03:00]}  Bg7 {[%clk 0:03:01]} 4. O-O {[%clk 0:03:01]}  Nf6 {[%clk 0:03:01]} 5. d3 {[%clk 0:03:01]}  O-O {[%clk 0:03:01]} 6. Nbd2 {[%clk 0:03:02]}  Nc6 {[%clk 0:03:01]} 7. e4 {[%clk 0:03:02]}  e5 {[%clk 0:03:02]} 8. Re1 {[%clk 0:03:02]}  dxe4 {[%clk 0:03:01]} 9. dxe4 {[%clk 0:03:02]}  Be6 {[%clk 0:02:59]} 10. Qe2 {[%clk 0:03:00]}  a5 {[%clk 0:02:59]} 11. Nc4 {[%clk 0:02:58]}  Nd7 {[%clk 0:02:57]} 12. Bg5 {[%clk 0:02:40]}  Qe8 {[%clk 0:02:50]} 13. c3 {[%clk 0:02:25]}  a4 {[%clk 0:02:41]} 14. Be3 {[%clk 0:02:17]}  h6 {[%clk 0:02:38]} 15. Na3 {[%clk 0:02:09]}  Qe7 {[%clk 0:02:35]} 16. Nb5 {[%clk 0:02:09]}  Rfc8 {[%clk 0:02:34]} 17. Red1 {[%clk 0:01:54]}  Ra5 {[%clk 0:02:30]} 18. Ne1 {[%clk 0:01:47]}  Nc5 {[%clk 0:02:15]} 19. Nc2 {[%clk 0:01:44]}  Na6 {[%clk 0:01:59]} 20. Nba3 {[%clk 0:01:35]}  Nab8 {[%clk 0:01:30]} 21. Bf1 {[%clk 0:01:27]}  Nd7 {[%clk 0:01:28]} 22. Qe1 {[%clk 0:01:22]}  Nf6 {[%clk 0:01:27]} 23. f3 {[%clk 0:01:22]}  Bf8 {[%clk 0:01:24]} 24. Bb5 {[%clk 0:01:21]}  Kh7 {[%clk 0:01:15]} 25. Qf2 {[%clk 0:01:17]}  Nb8 {[%clk 0:01:04]} 26. Nb4 {[%clk 0:01:11]}  c6 {[%clk 0:00:56]} 27. Bf1 {[%clk 0:01:11]}  b5 {[%clk 0:00:54]} 28. Rd2 {[%clk 0:00:53]}  Nbd7 {[%clk 0:00:53]} 29. Rad1 {[%clk 0:00:53]}  Raa8 {[%clk 0:00:49]} 30. Nac2 {[%clk 0:00:41]}  Ne8 {[%clk 0:00:35]} 31. h4 {[%clk 0:00:40]}  Ndf6 {[%clk 0:00:35]} 32. Be2 {[%clk 0:00:37]}  Rc7 {[%clk 0:00:26]} 33. Ne1 {[%clk 0:00:35]}  Rac8 {[%clk 0:00:22]} 34. Na6 {[%clk 0:00:31]}  Rd7 {[%clk 0:00:20]} 35. Bc5 {[%clk 0:00:29]}  Qd8 {[%clk 0:00:18]} 36. Rxd7 {[%clk 0:00:26]}  Nxd7 {[%clk 0:00:18]} 37. Bxf8 {[%clk 0:00:24]}  Qa5 {[%clk 0:00:19]} 38. Rxd7 {[%clk 0:00:23]}  Bxd7 {[%clk 0:00:19]} 39. Nc5 {[%clk 0:00:23]}  Qd8 {[%clk 0:00:16]} 40. Qe3 {[%clk 0:00:15]}  g5 {[%clk 0:00:16]} 41. hxg5 {[%clk 0:00:14]}  hxg5 {[%clk 0:00:17]} 42. Nxd7 {[%clk 0:00:11]}  Qxd7 {[%clk 0:00:17]} 43. Bc5 {[%clk 0:00:11]}  Kg6 {[%clk 0:00:12]} 44. f4 {[%clk 0:00:10]}  f6 {[%clk 0:00:12]} 45. fxe5 {[%clk 0:00:09]}  Qh3 {[%clk 0:00:06]} 46. Nd3 {[%clk 0:00:07]}  Rc7 {[%clk 0:00:05]} 47. Nf2 {[%clk 0:00:07]}  Qe6 {[%clk 0:00:04]} 48. exf6 {[%clk 0:00:06]}  Nxf6 {[%clk 0:00:04]} 49. e5 {[%clk 0:00:06]}  Nd5 {[%clk 0:00:04]} 50. Qe4+ {[%clk 0:00:06]}  Kg7 {[%clk 0:00:04]} 51. Bg4 {[%clk 0:00:05]}  Qh6 {[%clk 0:00:04]} 52. e6 {[%clk 0:00:05]}  Nf6 {[%clk 0:00:04]} 53. Bd4 {[%clk 0:00:05]}  Re7 {[%clk 0:00:04]} 54. Qf5 {[%clk 0:00:05]}  Qg6 {[%clk 0:00:03]} 55. Ne4 {[%clk 0:00:05]} 1-0

[Event "December 5 Late 2023"]
[Site "https://www.chess.com"]
[Date "2023.12.05"]
[Round "8"]
[White "Nakamura, Hikaru"]
[Black "Bok, Benjamin"]
[Result "1/2-1/2"]
[Board "6"]
[TimeControl "180+1"]
[WhiteFideId "2016192"]
[BlackFideId "1017063"]
[WhiteElo "3228"]
[BlackElo "2985"]
[WhiteTeam "USA"]
[BlackTeam "NED"]
[WhiteClock "0:00:11"]
[BlackClock "0:00:08"]

1. Nf3 {[%clk 0:03:00]}  d5 {[%clk 0:02:57]} 2. g3 {[%clk 0:03:00]}  g6 {[%clk 0:02:55]} 3. d4 {[%clk 0:03:00]}  Bg7 {[%clk 0:02:55]} 4. Bg2 {[%clk 0:03:00]}  Nf6 {[%clk 0:02:55]} 5. O-O {[%clk 0:03:01]}  O-O {[%clk 0:02:56]} 6. c3 {[%clk 0:03:02]}  c6 {[%clk 0:02:51]} 7. a4 {[%clk 0:02:58]}  a5 {[%clk 0:02:51]} 8. Nbd2 {[%clk 0:02:56]}  Bf5 {[%clk 0:02:42]} 9. Re1 {[%clk 0:02:54]}  Nbd7 {[%clk 0:02:39]} 10. Nh4 {[%clk 0:02:53]}  Be6 {[%clk 0:02:39]} 11. e4 {[%clk 0:02:52]}  dxe4 {[%clk 0:02:39]} 12. Nxe4 {[%clk 0:02:53]}  Nxe4 {[%clk 0:02:39]} 13. Bxe4 {[%clk 0:02:54]}  Nb6 {[%clk 0:02:29]} 14. Bc2 {[%clk 0:02:44]}  Qd7 {[%clk 0:02:26]} 15. Ng2 {[%clk 0:02:37]}  Rfe8 {[%clk 0:02:25]} 16. Nf4 {[%clk 0:02:10]}  Bg4 {[%clk 0:02:23]} 17. f3 {[%clk 0:02:04]}  Bf5 {[%clk 0:02:23]} 18. Nd3 {[%clk 0:02:04]}  Bxd3 {[%clk 0:01:42]} 19. Qxd3 {[%clk 0:01:59]}  Rad8 {[%clk 0:01:39]} 20. Qf1 {[%clk 0:01:52]}  Nd5 {[%clk 0:01:28]} 21. f4 {[%clk 0:01:45]}  e6 {[%clk 0:01:29]} 22. Be4 {[%clk 0:01:39]}  Ra8 {[%clk 0:01:25]} 23. Bd2 {[%clk 0:01:39]}  b5 {[%clk 0:01:24]} 24. Qf3 {[%clk 0:01:33]}  Reb8 {[%clk 0:01:22]} 25. axb5 {[%clk 0:01:29]}  cxb5 {[%clk 0:01:22]} 26. g4 {[%clk 0:01:18]}  a4 {[%clk 0:01:21]} 27. f5 {[%clk 0:01:19]}  Rc8 {[%clk 0:01:10]} 28. Kh1 {[%clk 0:00:58]}  b4 {[%clk 0:01:03]} 29. h4 {[%clk 0:00:53]}  a3 {[%clk 0:01:00]} 30. f6 {[%clk 0:00:39]}  Bxf6 {[%clk 0:00:49]} 31. bxa3 {[%clk 0:00:28]}  bxc3 {[%clk 0:00:49]} 32. Bh6 {[%clk 0:00:28]}  Bxd4 {[%clk 0:00:42]} 33. Rad1 {[%clk 0:00:27]}  Bg7 {[%clk 0:00:38]} 34. Bc1 {[%clk 0:00:23]}  c2 {[%clk 0:00:31]} 35. Rd3 {[%clk 0:00:23]}  Rab8 {[%clk 0:00:27]} 36. Bxd5 {[%clk 0:00:22]}  exd5 {[%clk 0:00:26]} 37. Rxd5 {[%clk 0:00:23]}  Qa4 {[%clk 0:00:16]} 38. Kg2 {[%clk 0:00:16]}  Rb3 {[%clk 0:00:12]} 39. Qe4 {[%clk 0:00:16]}  Qxe4+ {[%clk 0:00:10]} 40. Rxe4 {[%clk 0:00:17]}  Rb1 {[%clk 0:00:11]} 41. Rc4 {[%clk 0:00:15]}  Rbb8 {[%clk 0:00:05]} 42. Rdc5 {[%clk 0:00:13]}  Rxc5 {[%clk 0:00:03]} 43. Rxc5 {[%clk 0:00:14]}  Bb2 {[%clk 0:00:03]} 44. Rxc2 {[%clk 0:00:14]}  Bxc1 {[%clk 0:00:03]} 45. Rxc1 {[%clk 0:00:14]}  Rb2+ {[%clk 0:00:03]} 46. Kg3 {[%clk 0:00:13]}  Rb3+ {[%clk 0:00:03]} 47. Kg2 {[%clk 0:00:13]}  Rxa3 {[%clk 0:00:03]} 48. g5 {[%clk 0:00:13]}  Kg7 {[%clk 0:00:04]} 49. Rc7 {[%clk 0:00:13]}  Ra4 {[%clk 0:00:03]} 50. Kg3 {[%clk 0:00:13]}  Ra3+ {[%clk 0:00:03]} 51. Kg4 {[%clk 0:00:12]}  Rb3 {[%clk 0:00:04]} 52. Ra7 {[%clk 0:00:12]}  Rb4+ {[%clk 0:00:04]} 53. Kg3 {[%clk 0:00:12]}  Rb5 {[%clk 0:00:05]} 54. Rc7 {[%clk 0:00:12]}  Rd5 {[%clk 0:00:05]} 55. Ra7 {[%clk 0:00:12]}  Rf5 {[%clk 0:00:05]} 56. Kg4 {[%clk 0:00:13]}  h6 {[%clk 0:00:05]} 57. Rb7 {[%clk 0:00:12]}  Rf1 {[%clk 0:00:05]} 58. Rb5 {[%clk 0:00:09]}  Rg1+ {[%clk 0:00:05]} 59. Kh3 {[%clk 0:00:08]}  Rh1+ {[%clk 0:00:04]} 60. Kg3 {[%clk 0:00:08]}  Ra1 {[%clk 0:00:04]} 61. Rb7 {[%clk 0:00:08]}  Ra3+ {[%clk 0:00:04]} 62. Kf4 {[%clk 0:00:05]}  h5 {[%clk 0:00:03]} 63. Rb4 {[%clk 0:00:05]}  Rh3 {[%clk 0:00:03]} 64. Ke5 {[%clk 0:00:06]}  Rg3 {[%clk 0:00:04]} 65. Re4 {[%clk 0:00:05]}  Rg1 {[%clk 0:00:04]} 66. Rd4 {[%clk 0:00:05]}  Rf1 {[%clk 0:00:04]} 67. Rc4 {[%clk 0:00:05]}  Rf5+ {[%clk 0:00:04]} 68. Ke4 {[%clk 0:00:06]}  Rf1 {[%clk 0:00:04]} 69. Ke3 {[%clk 0:00:06]}  Rg1 {[%clk 0:00:04]} 70. Kf3 {[%clk 0:00:06]}  Rh1 {[%clk 0:00:03]} 71. Kg3 {[%clk 0:00:07]}  Rd1 {[%clk 0:00:03]} 72. Ra4 {[%clk 0:00:06]}  Rd3+ {[%clk 0:00:03]} 73. Kg2 {[%clk 0:00:06]}  Kf8 {[%clk 0:00:03]} 74. Ra7 {[%clk 0:00:06]}  Ke8 {[%clk 0:00:03]} 75. Rb7 {[%clk 0:00:06]}  Rd7 {[%clk 0:00:04]} 76. Rb4 {[%clk 0:00:07]}  Rd3 {[%clk 0:00:04]} 77. Rb7 {[%clk 0:00:06]}  Kf8 {[%clk 0:00:04]} 78. Ra7 {[%clk 0:00:07]}  Re3 {[%clk 0:00:04]} 79. Rb7 {[%clk 0:00:07]}  Re4 {[%clk 0:00:05]} 80. Kg3 {[%clk 0:00:07]}  Rg4+ {[%clk 0:00:05]} 81. Kh3 {[%clk 0:00:07]}  Re4 {[%clk 0:00:06]} 82. Ra7 {[%clk 0:00:08]}  Re3+ {[%clk 0:00:06]} 83. Kg2 {[%clk 0:00:08]}  Re7 {[%clk 0:00:07]} 84. Ra8+ {[%clk 0:00:09]}  Re8 {[%clk 0:00:07]} 85. Ra7 {[%clk 0:00:09]}  Re4 {[%clk 0:00:07]} 86. Kg3 {[%clk 0:00:09]}  Rg4+ {[%clk 0:00:07]} 87. Kh3 {[%clk 0:00:10]}  Re4 {[%clk 0:00:07]} 88. Kg3 {[%clk 0:00:11]}  Re3+ {[%clk 0:00:08]} 89. Kg2 {[%clk 0:00:11]}  Ke8 {[%clk 0:00:08]} 90. Rb7 {[%clk 0:00:11]}  Kf8 {[%clk 0:00:08]} 91. Ra7 {[%clk 0:00:11]} 1/2-1/2

[Event "December 5 Late 2023"]
[Site "https://www.chess.com"]
[Date "2023.12.05"]
[Round "8"]
[White "Martinez Alcantara, Jose Eduardo"]
[Black "Naroditsky, Daniel"]
[Result "1/2-1/2"]
[Board "7"]
[TimeControl "180+1"]
[WhiteFideId "3805662"]
[BlackFideId "2026961"]
[WhiteElo "2980"]
[BlackElo "3165"]
[WhiteTeam "PER"]
[BlackTeam "USA"]
[WhiteClock "0:00:08"]
[BlackClock "0:00:04"]

1. e4 {[%clk 0:03:00]}  e5 {[%clk 0:02:57]} 2. Nf3 {[%clk 0:03:00]}  Nc6 {[%clk 0:02:57]} 3. Nc3 {[%clk 0:03:00]}  Nf6 {[%clk 0:02:58]} 4. h3 {[%clk 0:03:00]}  h6 {[%clk 0:02:40]} 5. d4 {[%clk 0:02:58]}  exd4 {[%clk 0:02:39]} 6. Nxd4 {[%clk 0:02:59]}  Bc5 {[%clk 0:02:38]} 7. Nxc6 {[%clk 0:02:55]}  bxc6 {[%clk 0:02:38]} 8. Bd3 {[%clk 0:02:55]}  d6 {[%clk 0:02:38]} 9. O-O {[%clk 0:02:52]}  O-O {[%clk 0:02:39]} 10. Kh1 {[%clk 0:02:37]}  Re8 {[%clk 0:02:38]} 11. Qf3 {[%clk 0:01:56]}  Rb8 {[%clk 0:02:21]} 12. Rb1 {[%clk 0:01:56]}  Be6 {[%clk 0:02:10]} 13. b3 {[%clk 0:01:51]}  Nd7 {[%clk 0:01:43]} 14. Qg3 {[%clk 0:01:49]}  Qf6 {[%clk 0:01:34]} 15. Ne2 {[%clk 0:01:47]}  Ne5 {[%clk 0:01:29]} 16. f4 {[%clk 0:01:41]}  Nxd3 {[%clk 0:01:19]} 17. cxd3 {[%clk 0:01:42]}  Qg6 {[%clk 0:01:19]} 18. Qf3 {[%clk 0:01:25]}  f5 {[%clk 0:01:19]} 19. Ng3 {[%clk 0:01:25]}  Bd4 {[%clk 0:01:12]} 20. Bb2 {[%clk 0:01:23]}  Bxb2 {[%clk 0:01:02]} 21. Rxb2 {[%clk 0:01:24]}  c5 {[%clk 0:00:56]} 22. Re2 {[%clk 0:01:21]}  Qf7 {[%clk 0:00:50]} 23. Rfe1 {[%clk 0:01:14]}  Bd7 {[%clk 0:00:50]} 24. Kh2 {[%clk 0:01:11]}  Kh7 {[%clk 0:00:36]} 25. exf5 {[%clk 0:01:01]}  Rxe2 {[%clk 0:00:34]} 26. Rxe2 {[%clk 0:01:02]}  Bxf5 {[%clk 0:00:34]} 27. Nxf5 {[%clk 0:01:03]}  Qxf5 {[%clk 0:00:34]} 28. Re7 {[%clk 0:01:04]}  Rf8 {[%clk 0:00:28]} 29. g3 {[%clk 0:00:33]}  Rf7 {[%clk 0:00:28]} 30. Qe4 {[%clk 0:00:28]}  Qxe4 {[%clk 0:00:28]} 31. Rxe4 {[%clk 0:00:29]}  g5 {[%clk 0:00:21]} 32. Kg2 {[%clk 0:00:24]}  gxf4 {[%clk 0:00:20]} 33. gxf4 {[%clk 0:00:25]}  Kg6 {[%clk 0:00:19]} 34. Ra4 {[%clk 0:00:20]}  c6 {[%clk 0:00:19]} 35. Kf3 {[%clk 0:00:16]}  Kf5 {[%clk 0:00:19]} 36. Ra6 {[%clk 0:00:16]}  Rc7 {[%clk 0:00:20]} 37. h4 {[%clk 0:00:09]}  h5 {[%clk 0:00:20]} 38. Kg3 {[%clk 0:00:09]}  Rg7+ {[%clk 0:00:20]} 39. Kf3 {[%clk 0:00:09]}  Rg4 {[%clk 0:00:16]} 40. Rxc6 {[%clk 0:00:10]}  Rxf4+ {[%clk 0:00:16]} 41. Ke3 {[%clk 0:00:06]}  Rd4 {[%clk 0:00:17]} 42. Ra6 {[%clk 0:00:05]}  Ke5 {[%clk 0:00:16]} 43. Rxa7 {[%clk 0:00:05]}  Rxh4 {[%clk 0:00:16]} 44. Rh7 {[%clk 0:00:04]}  Rh1 {[%clk 0:00:10]} 45. a4 {[%clk 0:00:04]}  h4 {[%clk 0:00:10]} 46. Kf3 {[%clk 0:00:03]}  h3 {[%clk 0:00:09]} 47. Kg3 {[%clk 0:00:03]}  Rb1 {[%clk 0:00:05]} 48. Rh5+ {[%clk 0:00:02]}  Kd4 {[%clk 0:00:04]} 49. Rh4+ {[%clk 0:00:01]}  Kxd3 {[%clk 0:00:04]} 50. Rxh3 {[%clk 0:00:02]}  Kc3 {[%clk 0:00:02]} 51. Kf4+ {[%clk 0:00:03]}  Kb4 {[%clk 0:00:02]} 52. Ke4 {[%clk 0:00:04]}  Rd1 {[%clk 0:00:03]} 53. Rd3 {[%clk 0:00:04]}  Rxd3 {[%clk 0:00:02]} 54. Kxd3 {[%clk 0:00:05]}  d5 {[%clk 0:00:02]} 55. Kc2 {[%clk 0:00:05]}  Ka5 {[%clk 0:00:02]} 56. Kc3 {[%clk 0:00:05]}  Kb6 {[%clk 0:00:02]} 57. b4 {[%clk 0:00:06]}  cxb4+ {[%clk 0:00:02]} 58. Kxb4 {[%clk 0:00:07]}  d4 {[%clk 0:00:03]} 59. Kc4 {[%clk 0:00:08]}  Ka5 {[%clk 0:00:03]} 60. Kxd4 {[%clk 0:00:08]}  Kxa4 {[%clk 0:00:04]} 1/2-1/2

[Event "December 5 Late 2023"]
[Site "https://www.chess.com"]
[Date "2023.12.05"]
[Round "8"]
[White "Drygalov, Andrey"]
[Black "Andreikin, Dmitry"]
[Result "0-1"]
[Board "8"]
[TimeControl "180+1"]
[WhiteFideId "24171735"]
[BlackFideId "4158814"]
[WhiteElo "2969"]
[BlackElo "3109"]
[WhiteTeam "RUS"]
[BlackTeam "FID"]
[WhiteClock "0:00:00"]
[BlackClock "0:00:02"]

1. e4 {[%clk 0:03:00]}  c5 {[%clk 0:02:59]} 2. Nf3 {[%clk 0:03:00]}  e6 {[%clk 0:02:59]} 3. d4 {[%clk 0:03:00]}  cxd4 {[%clk 0:03:00]} 4. Nxd4 {[%clk 0:03:00]}  a6 {[%clk 0:03:01]} 5. c4 {[%clk 0:03:00]}  Nf6 {[%clk 0:03:00]} 6. Nc3 {[%clk 0:03:00]}  Qc7 {[%clk 0:03:01]} 7. a3 {[%clk 0:03:01]}  Nxe4 {[%clk 0:02:55]} 8. Nxe4 {[%clk 0:02:58]}  Qe5 {[%clk 0:02:55]} 9. Be2 {[%clk 0:02:56]}  Qxe4 {[%clk 0:02:54]} 10. O-O {[%clk 0:02:56]}  Nc6 {[%clk 0:02:52]} 11. Nf3 {[%clk 0:02:24]}  Be7 {[%clk 0:02:47]} 12. Bd3 {[%clk 0:02:22]}  Qg4 {[%clk 0:02:47]} 13. h3 {[%clk 0:02:22]}  Qh5 {[%clk 0:02:47]} 14. Bf4 {[%clk 0:02:21]}  O-O {[%clk 0:02:33]} 15. b4 {[%clk 0:02:13]}  f5 {[%clk 0:02:25]} 16. Re1 {[%clk 0:01:56]}  d6 {[%clk 0:02:18]} 17. b5 {[%clk 0:01:51]}  Nd8 {[%clk 0:02:09]} 18. Be2 {[%clk 0:01:37]}  axb5 {[%clk 0:01:37]} 19. Bxd6 {[%clk 0:01:24]}  Bxd6 {[%clk 0:01:34]} 20. Qxd6 {[%clk 0:01:24]}  Nf7 {[%clk 0:01:29]} 21. Qb4 {[%clk 0:01:16]}  Ra4 {[%clk 0:01:05]} 22. Qxb5 {[%clk 0:01:11]}  Ra6 {[%clk 0:01:05]} 23. c5 {[%clk 0:01:09]}  Qh6 {[%clk 0:01:04]} 24. Qb4 {[%clk 0:01:04]}  Rc6 {[%clk 0:00:57]} 25. Bb5 {[%clk 0:01:01]}  Rc7 {[%clk 0:00:58]} 26. Bc4 {[%clk 0:01:01]}  Qf6 {[%clk 0:00:52]} 27. Rad1 {[%clk 0:00:59]}  Kh8 {[%clk 0:00:45]} 28. Nd4 {[%clk 0:00:31]}  Ne5 {[%clk 0:00:38]} 29. Bb3 {[%clk 0:00:24]}  Nc6 {[%clk 0:00:24]} 30. Nxc6 {[%clk 0:00:22]}  Rxc6 {[%clk 0:00:24]} 31. Rd6 {[%clk 0:00:23]}  f4 {[%clk 0:00:19]} 32. Rxc6 {[%clk 0:00:16]}  bxc6 {[%clk 0:00:20]} 33. Qe4 {[%clk 0:00:17]}  Qc3 {[%clk 0:00:20]} 34. Bxe6 {[%clk 0:00:13]}  Re8 {[%clk 0:00:20]} 35. Rd1 {[%clk 0:00:14]}  Qxc5 {[%clk 0:00:12]} 36. Bxc8 {[%clk 0:00:06]}  Rxc8 {[%clk 0:00:13]} 37. Qxf4 {[%clk 0:00:07]}  Qxa3 {[%clk 0:00:12]} 38. Rd7 {[%clk 0:00:05]}  Qa1+ {[%clk 0:00:09]} 39. Kh2 {[%clk 0:00:05]}  h6 {[%clk 0:00:09]} 40. Rc7 {[%clk 0:00:03]}  Rxc7 {[%clk 0:00:07]} 41. Qxc7 {[%clk 0:00:04]}  Qf6 {[%clk 0:00:06]} 42. f4 {[%clk 0:00:03]}  Qe6 {[%clk 0:00:06]} 43. Qb8+ {[%clk 0:00:03]}  Kh7 {[%clk 0:00:06]} 44. Qb1+ {[%clk 0:00:03]}  Qg6 {[%clk 0:00:06]} 45. Qb6 {[%clk 0:00:02]}  Qd6 {[%clk 0:00:05]} 46. Qe3 {[%clk 0:00:02]}  c5 {[%clk 0:00:05]} 47. Qe4+ {[%clk 0:00:03]}  Qg6 {[%clk 0:00:04]} 48. Qd5 {[%clk 0:00:03]}  Qc2 {[%clk 0:00:03]} 49. f5 {[%clk 0:00:04]}  Qc3 {[%clk 0:00:03]} 50. Qe6 {[%clk 0:00:03]}  Qf6 {[%clk 0:00:03]} 51. Qd5 {[%clk 0:00:04]}  Qe7 {[%clk 0:00:03]} 52. Kg1 {[%clk 0:00:02]}  Qc7 {[%clk 0:00:03]} 53. Qc4 {[%clk 0:00:01]}  Qe5 {[%clk 0:00:03]} 54. Qc2 {[%clk 0:00:02]}  Kg8 {[%clk 0:00:03]} 55. Kf2 {[%clk 0:00:02]}  Kf7 {[%clk 0:00:02]} 56. Kf3 {[%clk 0:00:03]}  Kf6 {[%clk 0:00:03]} 57. g4 {[%clk 0:00:03]}  Qd5+ {[%clk 0:00:02]} 58. Kf4 {[%clk 0:00:02]}  Qd4+ {[%clk 0:00:02]} 59. Kf3 {[%clk 0:00:03]}  c4 {[%clk 0:00:03]} 60. Qa4 {[%clk 0:00:03]}  Qd3+ {[%clk 0:00:03]} 61. Kf4 {[%clk 0:00:03]}  Qd4+ {[%clk 0:00:03]} 62. Kf3 {[%clk 0:00:04]}  Qd5+ {[%clk 0:00:03]} 63. Ke3 {[%clk 0:00:02]}  Kg5 {[%clk 0:00:03]} 64. Qe8 {[%clk 0:00:01]}  Qd3+ {[%clk 0:00:02]} 65. Kf2 {[%clk 0:00:02]}  Kf4 {[%clk 0:00:02]} 66. Qb8+ {[%clk 0:00:02]}  Ke4 {[%clk 0:00:02]} 67. Qb7+ {[%clk 0:00:02]}  Kf4 {[%clk 0:00:02]} 68. Qb8+ {[%clk 0:00:02]}  Kg5 {[%clk 0:00:02]} 69. Qe5 {[%clk 0:00:01]}  Qd2+ {[%clk 0:00:02]} 70. Kf3 {[%clk 0:00:02]}  Qd3+ {[%clk 0:00:02]} 71. Kf2 {[%clk 0:00:02]}  Kh4 {[%clk 0:00:03]} 72. Qxg7 {[%clk 0:00:02]}  Qd2+ {[%clk 0:00:02]} 73. Kf3 {[%clk 0:00:03]}  Qd1+ {[%clk 0:00:02]} 74. Ke4 {[%clk 0:00:02]}  Qd3+ {[%clk 0:00:02]} 75. Kf4 {[%clk 0:00:03]}  Qd2+ {[%clk 0:00:02]} 76. Ke4 {[%clk 0:00:03]}  Qe2+ {[%clk 0:00:03]} 77. Kf4 {[%clk 0:00:03]}  Qf2+ {[%clk 0:00:03]} 78. Ke4 {[%clk 0:00:03]}  Qe2+ {[%clk 0:00:03]} 79. Kf4 {[%clk 0:00:04]}  Qf1+ {[%clk 0:00:03]} 80. Ke4 {[%clk 0:00:04]}  Qd3+ {[%clk 0:00:02]} 81. Kf4 {[%clk 0:00:04]}  Qd2+ {[%clk 0:00:03]} 82. Kf3 {[%clk 0:00:04]}  c3 {[%clk 0:00:02]} 83. g5 {[%clk 0:00:02]}  Qxg5 {[%clk 0:00:01]} 84. Qd4+ {[%clk 0:00:01]}  Kxh3 {[%clk 0:00:02]} 85. Ke2 {[%clk 0:00:02]}  Qg2+ {[%clk 0:00:02]} 86. Ke1 {[%clk 0:00:01]}  Qh1+ {[%clk 0:00:01]} 87. Ke2 {[%clk 0:00:01]}  Qg2+ {[%clk 0:00:02]} 88. Ke1 {[%clk 0:00:02]}  Qg3+ {[%clk 0:00:02]} 89. Kd1 {[%clk 0:00:02]}  Qf3+ {[%clk 0:00:02]} 90. Kc2 {[%clk 0:00:02]}  Qxf5+ {[%clk 0:00:02]} 91. Kxc3 {[%clk 0:00:03]}  h5 {[%clk 0:00:03]} 92. Kd2 {[%clk 0:00:04]}  h4 {[%clk 0:00:03]} 93. Ke2 {[%clk 0:00:03]}  Kg2 {[%clk 0:00:02]} 94. Qe3 {[%clk 0:00:02]}  Qg4+ {[%clk 0:00:02]} 95. Ke1 {[%clk 0:00:00]}  Qg3+ {[%clk 0:00:02]} 0-1